fUSD/lending_fUSD_20251227
["ID","MTS","AMOUNT","RATE_DAILY","PERIOD"]
[399888052,1766812238547,-250.0,0.00013258,2]
[399888053,1766812238558,-1000.0,0.00013303,2]
[399888054,1766812238568,-12434.79,0.0001341,2]
[399888055,1766812238578,-500.0,0.00013516,2]
[399888056,1766812238588,-982.74887118,0.000136,2]
[399888057,1766812238598,-4606.31,0.00013605,2]
[399888058,1766812238609,-500.0,0.00013698,2]
[399888059,1766812238619,-505.51730535,0.00013698,2]
[399888060,1766812238629,-500.0,0.00013698,2]
[399888061,1766812238639,-507.94447262,0.00013698,2]
[399888062,1766812238650,-500.0,0.00013698,2]
[399888063,1766812238660,-647.87474289,0.00013698,2]
[399888064,1766812238671,-547.84139381,0.00013698,2]
[399888065,1766812238681,-500.0,0.00013698,2]
[399888066,1766812238691,-507.14401581,0.00013698,2]
[399888067,1766812238701,-500.0,0.00013698,2]
[399888068,1766812238711,-506.81970095,0.00013698,2]
[399888069,1766812238721,-504.4048165,0.00013698,2]
[399888070,1766812238731,-299.99,0.00013699,2]
[399888071,1766812238742,-2964.69,0.00013699,2]
[399888072,1766812238754,-1462.8,0.00013699,2]
[399888073,1766812238765,-2791.47,0.00013699,2]
[399888074,1766812238775,-4999.99,0.00013699,2]
[399888075,1766812238786,-4980.73,0.00013699,2]
[399888076,1766812238796,-5431.93,0.00013699,2]
[399888077,1766812238807,-512.09,0.00013699,2]
[399888078,1766812238817,-1601.19,0.00013699,2]
[399888079,1766812238829,-9999.99,0.00013699,2]
[399888080,1766812238840,-5186.14,0.00013699,2]
[399888081,1766812238850,-999.99,0.00013699,2]
[399888082,1766812238861,-1204.5,0.00013699,2]
[399888083,1766812238872,-150.99,0.00013699,2]
[399888084,1766812238883,-336.52,0.00013699,2]
[399888085,1766812238893,-629.34910635,0.0001379,2]
[399888086,1766812238903,-19726.57,0.00013859,2]
[399888087,1766812238914,-824.24465819,0.0001389,2]
[399888088,1766812238925,-3039.93,0.0001399,2]
[399888089,1766812238936,-824.24465812,0.00014224,2]
[399888090,1766812238947,-500.0,0.00014373,2]
[399888091,1766812238958,-3019.84,0.00014466,2]
[399888092,1766812238969,-166.66,0.00014496,2]
[399888093,1766812238980,-824.24465812,0.00014559,2]
[399888094,1766812238990,-151.0,0.00014613,2]
[399888095,1766812239000,-151.0,0.00014613,2]
[399888096,1766812239012,-151.0,0.00014642,2]
[399888097,1766812239022,-151.0,0.00014642,2]
[399888098,1766812239033,-151.0,0.00014642,2]
[399888099,1766812239044,-151.0,0.00014642,2]
[399888100,1766812239055,-151.0,0.00014642,2]
[399888101,1766812239065,-151.0,0.00014642,2]
[399888102,1766812239077,-215.15,0.00014722,2]
[399888103,1766812239088,-824.24465812,0.00014893,2]
[399888104,1766812239099,-1000.0,0.00014921,2]
[399888105,1766812239111,-1000.0,0.00014965,2]
[399888106,1766812239121,-824.24465812,0.00015228,2]
[399888107,1766812239133,-500.0,0.0001526,2]
[399888108,1766812239144,-596.46148567,0.00015468,2]
[399888109,1766812239155,-237.11,0.00015526,2]
[399888110,1766812239166,-824.24465812,0.00015562,2]
[399888111,1766812239177,-824.24465812,0.00015897,2]
[399888112,1766812239188,-250.0,0.00015926,2]
[399888113,1766812239199,-500.0,0.00015973,2]
[399888114,1766812239210,-190.24545095,0.00015973,2]
[399888115,1766812239221,-500.0,0.00015973,2]
[399888116,1766812239231,-500.0,0.00015973,2]
[399888117,1766812239242,-500.86568541,0.00015973,2]
[399888118,1766812239253,-500.0,0.00015973,2]
[399888119,1766812239263,-500.77480786,0.00015973,2]
[399888120,1766812239274,-500.80456344,0.00015973,2]
[399888121,1766812239285,-500.79213904,0.00015973,2]
[399888122,1766812239296,-500.0,0.00015973,2]
[399888123,1766812239307,-500.0,0.00015973,2]
[399888124,1766812239317,-500.76713087,0.00015973,2]
[399888125,1766812239328,-500.88915437,0.00015973,2]
[399888126,1766812239340,-500.69120585,0.00015973,2]
[399888127,1766812239350,-500.0,0.00015973,2]
[399888128,1766812239361,-500.0,0.00015973,2]
[399888129,1766812239371,-500.0,0.00015973,2]
[399888130,1766812239382,-500.0,0.00015973,2]
[399888131,1766812239393,-500.70783862,0.00015973,2]
[399888132,1766812239404,-499.4006942,0.00015973,2]
[399888133,1766812239415,-500.0,0.00015973,2]
[399888134,1766812239426,-501.09702076,0.00015973,2]
[399888135,1766812239436,-500.0,0.00015973,2]
[399888136,1766812239446,-500.0,0.00015973,2]
[399888137,1766812239457,-169.79069321,0.00015973,2]
[399888138,1766812239467,-500.0,0.00015973,2]
[399888139,1766812239478,-500.0,0.00015973,2]
[399888140,1766812239488,-500.0,0.00015973,2]
[399888141,1766812239498,-500.0,0.00015973,2]
[399888142,1766812239509,-500.0,0.00015973,2]
[399888143,1766812239522,-500.0,0.00015973,2]
[399888144,1766812239532,-500.80128753,0.00015973,2]
[399888145,1766812239543,-500.0,0.00015973,2]
[399888146,1766812239553,-500.0,0.00015973,2]
[399888148,1766812239564,-500.0,0.00015973,2]
[399888149,1766812239574,-2299.99999602,0.00016,2]
[399888150,1766812239585,-13826.57,0.00016051,2]
[399888151,1766812239595,-19987.73894925,0.00016338,2]
[399888152,1766812239606,-19987.73894925,0.000164,2]
[399888153,1766812239617,-500.0,0.00016437,2]
[399888154,1766812239627,-200.10053781,0.00016437,2]
[399888155,1766812239639,-576.6559373,0.00016437,2]
[399888156,1766812239649,-500.0,0.00016437,2]
[399888157,1766812239660,-343.69842701,0.00016437,2]
[399888158,1766812239670,-500.0,0.00016437,2]
[399888159,1766812239681,-500.37214344,0.00016437,2]
[399888160,1766812239692,-500.0,0.00016437,2]
[399888161,1766812239702,-500.0,0.00016437,2]
[399888162,1766812239712,-500.0,0.00016437,2]
[399888163,1766812239723,-500.0,0.00016437,2]
[399888164,1766812239734,-500.0,0.00016437,2]
[399888165,1766812239744,-500.0,0.00016437,2]
[399888166,1766812239754,-500.0,0.00016437,2]
[399888167,1766812239764,-371.12036172,0.00016437,2]
[399888168,1766812239775,-500.0,0.00016437,2]
[399888169,1766812239786,-500.0,0.00016437,2]
[399888170,1766812239796,-473.24692142,0.00016437,2]
[399888171,1766812239806,-500.0,0.00016437,2]
[399888172,1766812239816,-500.0,0.00016437,2]
[399888173,1766812239827,-500.0,0.00016437,2]
[399888174,1766812240203,-500.0,0.00016437,2]
[399888175,1766812240215,-500.0,0.00016437,2]
[399888176,1766812240234,-500.0,0.00016437,2]
[399888177,1766812240250,-500.0,0.00016437,2]
[399888178,1766812240261,-500.0,0.00016437,2]
[399888179,1766812240271,-500.0,0.00016437,2]
[399888180,1766812240280,-480.35636999,0.00016437,2]
[399888181,1766812240290,-500.0,0.00016437,2]
[399888182,1766812240301,-500.0,0.00016437,2]
[399888183,1766812240310,-500.0,0.00016437,2]
[399888184,1766812240320,-500.0,0.00016437,2]
[399888185,1766812240329,-644.4535728,0.00016437,2]
[399888186,1766812240338,-500.0,0.00016437,2]
[399888187,1766812240347,-500.0,0.00016437,2]
[399888188,1766812240357,-500.0,0.00016437,2]
[399888189,1766812240367,-500.0,0.00016437,2]
[399888190,1766812240376,-500.0,0.00016437,2]
[399888191,1766812240387,-500.0,0.00016437,2]
[399888192,1766812240396,-500.0,0.00016437,2]
[399888193,1766812240406,-500.0,0.00016437,2]
[399888194,1766812240416,-1507.32994125,0.00016438,2]
[399888195,1766812240426,-1507.32994125,0.00016438,2]
[399888196,1766812240436,-1507.32994125,0.00016438,2]
[399888197,1766812240445,-1507.32994125,0.00016438,2]
[399888198,1766812240455,-1507.32994125,0.00016438,2]
[399888199,1766812240465,-1507.32994125,0.00016438,2]
[399888200,1766812240474,-1507.32994125,0.00016438,2]
[399888201,1766812240484,-1507.32994125,0.00016438,2]
[399888202,1766812240494,-1507.32994125,0.00016438,2]
[399888203,1766812240504,-1507.32994125,0.00016438,2]
[399888204,1766812240516,-1507.32994125,0.00016438,2]
[399888205,1766812240526,-1507.32994125,0.00016438,2]
[399888206,1766812240536,-1507.32994125,0.00016438,2]
[399888207,1766812240545,-1507.32994125,0.00016438,2]
[399888208,1766812240555,-1507.32994125,0.00016438,2]
[399888209,1766812240565,-1507.32994125,0.00016438,2]
[399888210,1766812240574,-1507.32994125,0.00016438,2]
[399888211,1766812240584,-1507.32994125,0.00016438,2]
[399888212,1766812240595,-1507.32994125,0.00016438,2]
[399888213,1766812240604,-1507.32994125,0.00016438,2]
[399888214,1766812240614,-1507.32994125,0.00016438,2]
[399888215,1766812240624,-1507.32994125,0.00016438,2]
[399888216,1766812240634,-1507.32994125,0.00016438,2]
[399888217,1766812240643,-1507.32994125,0.00016438,2]
[399888218,1766812240653,-1507.32994125,0.00016438,2]
[399888219,1766812240663,-1507.32994125,0.00016438,2]
[399888220,1766812240672,-1507.32994125,0.00016438,2]
[399888221,1766812240682,-1507.32994125,0.00016438,2]
[399888222,1766812240692,-1507.32994125,0.00016438,2]
[399888223,1766812240702,-1507.32994125,0.00016438,2]
[399888224,1766812240711,-1507.32994125,0.00016438,2]
[399888225,1766812240721,-1507.32994125,0.00016438,2]
[399888226,1766812240731,-1507.32994125,0.00016438,2]
[399888227,1766812240741,-1507.32994125,0.00016438,2]
[399888228,1766812240750,-1507.32994125,0.00016438,2]
[399888229,1766812240760,-1507.32994125,0.00016438,2]
[399888230,1766812240770,-1507.32994125,0.00016438,2]
[399888231,1766812240779,-1507.32994125,0.00016438,2]
[399888232,1766812240789,-1507.32994125,0.00016438,2]
[399888233,1766812240800,-1507.32994125,0.00016438,2]
[399888234,1766812240825,-1507.32994125,0.00016438,2]
[399888235,1766812240841,-1507.32994125,0.00016438,2]
[399888236,1766812240852,-1507.32994125,0.00016438,2]
[399888237,1766812240864,-1507.32994125,0.00016438,2]
[399888238,1766812240881,-1507.32994125,0.00016438,2]
[399888239,1766812240893,-1507.32994125,0.00016438,2]
[399888240,1766812240904,-1507.32994125,0.00016438,2]
[399888241,1766812240915,-1507.32994125,0.00016438,2]
[399888242,1766812240926,-1507.32994125,0.00016438,2]
[399888243,1766812240937,-1507.32994125,0.00016438,2]
[399888244,1766812240948,-1507.32994125,0.00016438,2]
[399888245,1766812240958,-1507.32994125,0.00016438,2]
[399888246,1766812240968,-1507.32994125,0.00016438,2]
[399888247,1766812240979,-1507.32994125,0.00016438,2]
[399888248,1766812240989,-1507.32994125,0.00016438,2]
[399888249,1766812241000,-1507.32994125,0.00016438,2]
[399888250,1766812241010,-1507.32994125,0.00016438,2]
[399888251,1766812241021,-1507.32994125,0.00016438,2]
[399888252,1766812241031,-1507.32994125,0.00016438,2]
[399888253,1766812241041,-1507.32994125,0.00016438,2]
[399888254,1766812241052,-1507.32994125,0.00016438,2]
[399888255,1766812241063,-1507.32994125,0.00016438,2]
[399888256,1766812241073,-1507.32994125,0.00016438,2]
[399888257,1766812241084,-1507.32994125,0.00016438,2]
[399888258,1766812241095,-1507.32994125,0.00016438,2]
[399888259,1766812241106,-1507.32994125,0.00016438,2]
[399888260,1766812241115,-1507.32994125,0.00016438,2]
[399888261,1766812241125,-1507.32994125,0.00016438,2]
[399888262,1766812241136,-1479.92394231,0.00016438,2]
[399888263,1766812241146,-1479.92394231,0.00016438,2]
[399888264,1766812241157,-1479.92394231,0.00016438,2]
[399888265,1766812241167,-1479.92394231,0.00016438,2]
[399888266,1766812241178,-1479.92394231,0.00016438,2]
[399888267,1766812241194,-1479.92394231,0.00016438,2]
[399888268,1766812241204,-1479.92394231,0.00016438,2]
[399888269,1766812241214,-1479.92394231,0.00016438,2]
[399888270,1766812241225,-1479.92394231,0.00016438,2]
[399888271,1766812241235,-1479.92394231,0.00016438,2]
[399888272,1766812241246,-1479.92394231,0.00016438,2]
[399888273,1766812241256,-1479.92394231,0.00016438,2]
[399888274,1766812241267,-1479.92394231,0.00016438,2]
[399888275,1766812241278,-1479.92394231,0.00016438,2]
[399888276,1766812241288,-1479.92394231,0.00016438,2]
[399888277,1766812241298,-1479.92394231,0.00016438,2]
[399888278,1766812241308,-1479.92394231,0.00016438,2]
[399888279,1766812241318,-1479.92394231,0.00016438,2]
[399888280,1766812241329,-1479.92394231,0.00016438,2]
[399888281,1766812241339,-1479.92394231,0.00016438,2]
[399888282,1766812241349,-1479.92394231,0.00016438,2]
[399888283,1766812241360,-1479.92394231,0.00016438,2]
[399888284,1766812241371,-2748.06,0.00016438,2]
[399888285,1766812241381,-19987.73894925,0.00016463,2]
[399888286,1766812241391,-500.0,0.00016521,2]
[399888287,1766812241402,-19987.73894925,0.00016525,2]
[399888288,1766812241412,-19987.73894925,0.00016588,2]
[399888289,1766812241423,-1000.0,0.00016628,2]
[399888290,1766812241434,-19987.73894925,0.0001665,2]
[399888291,1766812241445,-19987.73894925,0.00016713,2]
[399888292,1766812241454,-19987.73894925,0.00016775,2]
[399888293,1766812241465,-19987.73894925,0.00016838,2]
[399888294,1766812241475,-166.66,0.00016888,2]
[399888295,1766812241486,-151.95953045,0.000169,2]
[399888296,1766812241496,-1650.76945526,0.000169,2]
[399888297,1766812241507,-19987.73894925,0.000169,2]
[399888298,1766812241522,-194.19827992,0.000169,2]
[399888299,1766812241532,-200.8205224,0.000169,2]
[399888300,1766812241542,-183.8146528,0.00016946,2]
[399888301,1766812241559,-173.55490715,0.0001699,2]
[399888302,1766812241570,-300.0,0.00016999,2]
[399888303,1766812241580,-300.0,0.00016999,2]
[399888304,1766812241592,-401.0204157,0.00016999,2]
[399888305,1766812241603,-500.0,0.00016999,2]
[399888306,1766812241613,-151.36662435,0.00016999,2]
[399888307,1766812241624,-500.0,0.00016999,2]
[399888308,1766812241634,-480.55480843,0.00016999,2]
[399888309,1766812241645,-500.0,0.00016999,2]
[399888310,1766812241655,-507795.07688178,0.00017,2]
[399888311,1766812241675,-496.1,0.00017,2]
[399888312,1766812241687,-446.49837639,0.00017,2]
[399888313,1766812241700,-310.27302079,0.00017,2]
[399888314,1766812241745,-500.0,0.00012147,2]
[399888315,1766812241755,-508.75317618,0.000169,2]
[399888316,1766812241765,-48718.52337808,0.00017,2]
[399888317,1766812241776,-92994.93379538,0.00017,2]
[399888318,1766812241788,-23656.41799994,0.00017,2]
[399888319,1766812241800,-2451.658834,0.00017,2]
[399888320,1766812241812,-4514.51,0.00017,2]
[399888321,1766812241824,-1590.88900083,0.00017,2]
[399888322,1766812241837,-4237.64394581,0.00017,2]
[399888323,1766812241850,-746.71567383,0.00017,2]
[399888324,1766812241863,-671.44990857,0.00017,2]
[399888325,1766812241876,-1847.29706136,0.00017,2]
[399888326,1766812241890,-843.67086652,0.00017,2]
[399888327,1766812241923,-447.8665232,0.00012421,2]
[399888328,1766812241936,-52.1334768,0.00012421,2]
[399888329,1766812241947,-677.8665232,0.00017,2]
[399888330,1766812241959,-370.48581488,0.00017,2]
[399888331,1766812241972,-1230286.68081793,0.00017,2]
[399888332,1766812241985,-1427.900885,0.00017,2]
[399888333,1766812243364,-500.0,0.00012695,2]
[399888334,1766812243376,-824.24465812,0.00016231,2]
[399888335,1766812243386,-129851.98472753,0.00017,2]
[399888336,1766812243398,-636.960009,0.00017,2]
[399888337,1766812243410,-51028.57691713,0.00017,2]
[399888338,1766812243422,-307135.69791185,0.00017,2]
[399888339,1766812243435,-1101.40168,0.00017,2]
[399888340,1766812243448,-36263.19189563,0.00017,2]
[399888341,1766812243460,-504.95613233,0.00017,2]
[399888342,1766812243476,-2146.20119742,0.00017,2]
[399888343,1766812243488,-1164.99761564,0.00017,2]
[399888344,1766812243501,-4779.79456686,0.00017,2]
[399888345,1766812243515,-4139.35275217,0.00017,2]
[399888346,1766812243527,-1302.81008527,0.00017,2]
[399888347,1766812243539,-805.3129124,0.00017,2]
[399888348,1766812243551,-392.42322,0.00017,2]
[399888349,1766812243565,-412.05845751,0.00017,2]
[399888351,1766812243577,-337.27249606,0.00017,2]
[399888352,1766812244336,-3865.14,0.00017,2]
[399888353,1766812244348,-1015.95344153,0.00017,2]
[399888354,1766812244392,-4334.78576873,0.00017,2]
[399888355,1766812244404,-47204.20087028,0.00017,2]
[399888358,1766812245588,-1956.07784124,0.00017,2]
[399888359,1766812245601,-582.0582955,0.00017,2]
[399888360,1766812245613,-2098.09066157,0.00017,2]
[399888361,1766812245624,-360.0026,0.00017,2]
[399888362,1766812245698,-606.553,0.00017,2]
[399888363,1766812245710,-10276.89826205,0.00017,2]
[399888364,1766812245722,-3605.53971555,0.00017,2]
[399888365,1766812245752,-420.22282652,0.00017,2]
[399888366,1766812245808,-625.30888368,0.00017,2]
[399888367,1766812245867,-301.61586468,0.00017,2]
[399888368,1766812245880,-45250.25318156,0.00017,2]
[399888369,1766812245892,-431.69864103,0.00017,2]
[399888370,1766812245904,-2503.20420611,0.00017,2]
[399888371,1766812245917,-1057.83701526,0.00017,2]
[399888372,1766812245929,-705.00959292,0.00017,2]
[399888373,1766812245941,-105726.03407209,0.00017,2]
[399888377,1766812283291,-255.87685535,0.00012047,2]
[399888379,1766812302001,846.0,0.0003013,120]
[399888380,1766812378780,905601.02619314,0.00011954,2]
[399888381,1766812379491,-264.39759919,0.00011954,2]
[399888383,1766812382379,-165.52982588,0.00011954,2]
[399888384,1766812384482,-209.50761375,0.00011954,2]
[399888385,1766812386066,-167.46515835,0.00011954,2]
[399888386,1766812387635,-314.32927596,0.00011954,2]
[399888387,1766812390808,-352.41487998,0.00011954,2]
[399888388,1766812398231,-476.43839649,0.00011954,2]
[399888389,1766812402399,-217.94258592,0.00011954,2]
[399888390,1766812404822,-164.23543657,0.00011954,2]
[399888391,1766812407848,-195.64267054,0.00011954,2]
[399888392,1766812411775,-220.54331013,0.00011954,2]
[399888393,1766812413725,-190.43966131,0.00011954,2]
[399888394,1766812416379,-203.84285119,0.00011954,2]
[399888395,1766812422332,-166.66,0.00011954,2]
[399888396,1766812423804,-248.0,0.00011954,2]
[399888397,1766812427105,-183.45862217,0.00011954,2]
[399888398,1766812429168,-307.07000795,0.00011954,2]
[399888399,1766812432462,-264.72632509,0.00011954,2]
[399888400,1766812437609,-250.0,0.00011954,2]
[399888401,1766812439144,-201.29873156,0.00011954,2]
[399888402,1766812441466,-193.45126844,0.00011954,2]
[399888403,1766812444416,-317.14084097,0.00011954,2]
[399888404,1766812445949,-346.11299405,0.00011954,2]
[399888405,1766812450182,-151.059341,0.00011954,2]
[399888406,1766812452364,-161.42674057,0.00011954,2]
[399888407,1766812453946,-194.40313991,0.00011954,2]
[399888408,1766812456088,-228.1425854,0.00011954,2]
[399888409,1766812458256,-156.63631247,0.00011954,2]
[399888410,1766812460529,-211.78450564,0.00011954,2]
[399888411,1766812462099,-252.27016474,0.00011954,2]
[399888412,1766812464725,-595.51685364,0.00011954,2]
[399888413,1766812468818,-339.76430645,0.00011954,2]
[399888414,1766812622026,-8210.75065763,0.00011954,2]
[399888415,1766812627965,-10000.01,0.00011954,2]
[399888416,1766812729512,589.81,0.00024783,120]
[399888417,1766812856021,150.0,1.1e-06,2]
[399888448,1766813431624,-183.45862217,0.00011754,2]
[399888449,1766813431636,-246.0,0.00011754,2]
[399888450,1766813431646,-487.5372,0.00011854,2]
[399888451,1766813431657,-566.33706322,0.00011854,2]
[399888452,1766813431671,-701.62574342,0.00011854,2]
[399888453,1766813431721,-71745.57929495,0.00011854,2]
[399888454,1766813431781,-1364.71260208,0.00011854,2]
[399888455,1766813431838,-7432.8911826,0.00011854,2]
[399888467,1766813437712,-305.96311241,0.00011854,2]
[399888468,1766813437726,-642.12284043,0.00011854,2]
[399888469,1766813437766,-1023.47056,0.00011854,2]
[399888470,1766813437824,-7410.48326695,0.00011854,2]
[399888471,1766813437836,-2652.55239844,0.00011854,2]
[399888499,1766813439804,-1522.37739996,0.00011854,2]
[399888500,1766813439883,-617.05038201,0.00011854,2]
[399888501,1766813439896,-270.78429949,0.00011854,2]
[399888502,1766813440004,-1372.94995013,0.00011854,2]
[399888503,1766813440016,-2558.00938181,0.00011854,2]
[399888504,1766813440470,-1.7e-07,0.00011854,2]
[399888505,1766813440482,-5926.27312193,0.00011854,2]
[399888506,1766813440491,-300.0,0.00013039,2]
[399888507,1766813440501,-305.0,0.00013039,2]
[399888508,1766813440511,-500.0,0.00014603,2]
[399888509,1766813440522,-166.66,0.00014936,2]
[399888510,1766813440531,-166.66,0.0001525,2]
[399888511,1766813440541,-189.69,0.00015327,2]
[399888512,1766813440551,-150.0,0.00015374,2]
[399888513,1766813440561,-246.21,0.00015386,2]
[399888514,1766813440571,-423.25009712,0.00015482,2]
[399888515,1766813440582,-236.0922,0.00015482,2]
[399888516,1766813440592,-3230.855,0.00015482,2]
[399888517,1766813440601,-7502.4722,0.00015482,2]
[399888518,1766813440612,-166.66,0.00015565,2]
[399888519,1766813440622,-7498.15,0.00015581,2]
[399888520,1766813440633,-296.1,0.00015582,2]
[399888521,1766813440644,-150.99,0.00015582,2]
[399888522,1766813440665,-4999.99,0.00015582,2]
[399888523,1766813440678,-3154.32,0.00015582,2]
[399888524,1766813440688,-9999.99,0.00015582,2]
[399888525,1766813440698,-67533.89,0.00015582,2]
[399888526,1766813440707,-150.99,0.00015582,2]
[399888527,1766813440718,-3240.0,0.00015606,2]
[399888528,1766813440727,-11996.22,0.00015772,2]
[399888529,1766813440737,-151.0,0.00015834,2]
[399888530,1766813440746,-151.0,0.00015834,2]
[399888531,1766813440756,-151.0,0.00015837,2]
[399888532,1766813440766,-151.0,0.00015837,2]
[399888533,1766813440776,-423.25009704,0.00015862,2]
[399888534,1766813440786,-166.66,0.00015879,2]
[399888535,1766813440795,-500.0,0.00015973,2]
[399888536,1766813440805,-201.79336227,0.00015973,2]
[399888537,1766813440814,-500.0,0.00015973,2]
[399888538,1766813440824,-219.24965794,0.00015999,2]
[399888539,1766813440834,-500.0,0.00015999,2]
[399888540,1766813440844,-152.34670686,0.00015999,2]
[399888541,1766813440855,-500.0,0.00015999,2]
[399888542,1766813440865,-500.0,0.00015999,2]
[399888543,1766813440877,-500.0,0.00015999,2]
[399888544,1766813440887,-500.0,0.00015999,2]
[399888545,1766813440897,-230.48542395,0.00015999,2]
[399888546,1766813440907,-500.0,0.00015999,2]
[399888547,1766813440916,-500.0,0.00015999,2]
[399888548,1766813440927,-500.0,0.00015999,2]
[399888549,1766813440936,-500.0,0.00015999,2]
[399888550,1766813440946,-500.0,0.00015999,2]
[399888551,1766813440958,-500.0,0.00015999,2]
[399888552,1766813440967,-500.0,0.00015999,2]
[399888553,1766813440977,-500.0,0.00015999,2]
[399888554,1766813440987,-500.0,0.00015999,2]
[399888555,1766813440996,-500.0,0.00015999,2]
[399888556,1766813441006,-500.0,0.00015999,2]
[399888557,1766813441016,-500.0,0.00015999,2]
[399888558,1766813441030,-152079.18382339,0.00016,4]
[399888559,1766813441045,-1173.22049338,0.00016,4]
[399888568,1766813443489,-500.0,0.00016,4]
[399888569,1766813443747,-4963.42952712,0.00016,4]
[399888570,1766813443759,-475.50749934,0.00016,4]
[399888571,1766813443771,-500.0,0.00016055,2]
[399888572,1766813443781,-6692.3354,0.00016169,2]
[399888573,1766813443791,-166.66,0.00016193,2]
[399888574,1766813443801,-59.89576912,0.000162,5]
[399888575,1766813443812,-370.75127123,0.000162,5]
[399888576,1766813444466,-500.0,0.000162,5]
[399888577,1766813444478,-4069.35546928,0.000162,5]
[399888578,1766813444488,-423.25009704,0.00016242,2]
[399888579,1766813444498,-320.7006,0.00016269,2]
[399888580,1766813444509,-500.0,0.00016438,2]
[399888581,1766813444519,-500.0,0.00016438,2]
[399888582,1766813444529,-500.0,0.00016438,2]
[399888583,1766813444544,-500.0,0.00016438,2]
[399888584,1766813444554,-500.0,0.00016438,2]
[399888585,1766813444563,-195.94256245,0.00016438,2]
[399888586,1766813444575,-304.05743755,0.00016438,2]
[399888587,1766813444586,-52.90423641,0.00016438,2]
[399888588,1766813444598,-447.09576359,0.00016438,2]
[399888589,1766813444607,-500.0,0.00016438,2]
[399888590,1766813444618,-500.0,0.00016438,2]
[399888591,1766813444628,-500.0,0.00016438,2]
[399888592,1766813444638,-500.0,0.00016438,2]
[399888593,1766813444648,-500.0,0.00016438,2]
[399888594,1766813444658,-500.0,0.00016438,2]
[399888595,1766813444667,-500.0,0.00016438,2]
[399888596,1766813444677,-500.0,0.00016438,2]
[399888597,1766813444686,-500.0,0.00016438,2]
[399888598,1766813444696,-500.0,0.00016438,2]
[399888599,1766813444706,-500.0,0.00016438,2]
[399888600,1766813444716,-500.0,0.00016438,2]
[399888601,1766813444726,-500.0,0.00016438,2]
[399888602,1766813444735,-500.0,0.00016438,2]
[399888603,1766813444744,-500.0,0.00016438,2]
[399888604,1766813444754,-500.0,0.00016438,2]
[399888605,1766813444764,-218.60825013,0.00016438,2]
[399888606,1766813444773,-500.0,0.00016438,2]
[399888607,1766813444783,-226.08,0.00016438,2]
[399888608,1766813444792,-500.0,0.00016448,2]
[399888609,1766813444802,-150.0,0.00016448,2]
[399888610,1766813444812,-500.0,0.00016448,2]
[399888611,1766813444821,-475.0,0.00016448,2]
[399888612,1766813444831,-500.0,0.00016448,2]
[399888613,1766813444840,-974.0,0.00016448,2]
[399888614,1766813444850,-500.0,0.00016448,2]
[399888615,1766813444860,-150.0,0.00016448,2]
[399888616,1766813444870,-150.0,0.00016448,2]
[399888617,1766813444885,-500.0,0.00016448,2]
[399888618,1766813444895,-500.0,0.00016448,2]
[399888619,1766813444909,-155.06675033,0.00016448,2]
[399888620,1766813444919,-500.0,0.00016448,2]
[399888621,1766813444929,-500.0,0.00016448,2]
[399888622,1766813444939,-500.0,0.00016448,2]
[399888623,1766813444949,-150.0,0.00016448,2]
[399888624,1766813444960,-150.0,0.00016448,2]
[399888625,1766813444970,-500.0,0.00016448,2]
[399888626,1766813444980,-150.0,0.00016448,2]
[399888627,1766813444990,-500.0,0.00016448,2]
[399888628,1766813445001,-150.0,0.00016448,2]
[399888629,1766813445011,-150.0,0.00016448,2]
[399888630,1766813445021,-500.0,0.00016448,2]
[399888631,1766813445031,-150.0,0.00016448,2]
[399888632,1766813445042,-150.0,0.00016451,2]
[399888633,1766813445053,-150.0,0.00016451,2]
[399888634,1766813445063,-500.0,0.00016451,2]
[399888635,1766813445072,-500.0,0.00016451,2]
[399888636,1766813445082,-500.0,0.00016451,2]